[Event "*** Titled Tuesday Blitz"]
[Site "Chess.com"]
[Date "2020.01.07"]
[Round "7"]
[White "Terao90"]
[Black "Vuk2000"]
[Result "1/2-1/2"]
[WhiteElo "2460"]
[BlackElo "2673"]
[TimeControl "180+2"]
[EndTime "14:40:34 PST"]
[Termination "Game drawn by agreement"]

1. d4 {[%clk 0:03:01.9]} 1... Nf6 {[%clk 0:02:58.5]} 2. Bg5 {[%clk 0:03:00.9]}
2... d5 {[%clk 0:02:56.3]} 3. Bxf6 {[%clk 0:03:01.4]} 3... exf6 {[%clk
0:02:51.6]} 4. e3 {[%clk 0:03:03.3]} 4... Bd6 {[%clk 0:02:46.4]} 5. c4 {[%clk
0:03:02.1]} 5... dxc4 {[%clk 0:02:46.1]} 6. Bxc4 {[%clk 0:03:04]} 6... O-O
{[%clk 0:02:45.2]} 7. Nf3 {[%clk 0:03:03.4]} 7... c6 {[%clk 0:02:41.1]} 8. Nc3
{[%clk 0:03:00.1]} 8... Nd7 {[%clk 0:02:33.1]} 9. O-O {[%clk 0:02:59.5]} 9...
Qe7 {[%clk 0:02:31.6]} 10. h3 {[%clk 0:02:53.5]} 10... f5 {[%clk 0:02:32.8]} 11.
Re1 {[%clk 0:02:53.7]} 11... Nf6 {[%clk 0:02:33.7]} 12. Bd3 {[%clk 0:02:33.3]}
12... g6 {[%clk 0:02:26.9]} 13. Qc2 {[%clk 0:02:15.2]} 13... Re8 {[%clk
0:02:18.1]} 14. e4 {[%clk 0:02:05.6]} 14... fxe4 {[%clk 0:02:12.1]} 15. Nxe4
{[%clk 0:02:07.5]} 15... Be6 {[%clk 0:02:06]} 16. Neg5 {[%clk 0:02:06.3]} 16...
Qd7 {[%clk 0:02:02.3]} 17. Nxe6 {[%clk 0:02:06.2]} 17... Rxe6 {[%clk 0:02:03.3]}
18. Rxe6 {[%clk 0:02:07]} 18... Qxe6 {[%clk 0:02:03.9]} 19. Bc4 {[%clk
0:02:06.3]} 19... Qe4 {[%clk 0:01:46.7]} 20. Qb3 {[%clk 0:02:04.2]} 20... Qe7
{[%clk 0:01:46.5]} 21. Re1 {[%clk 0:02:03.8]} 21... Qc7 {[%clk 0:01:45.6]} 22.
Ne5 {[%clk 0:01:50.1]} 22... Rf8 {[%clk 0:01:42]} 23. Qf3 {[%clk 0:01:33.9]}
23... Kg7 {[%clk 0:01:42.6]} 24. Re2 {[%clk 0:01:25.6]} 24... c5 {[%clk
0:01:36.2]} 25. Ng4 {[%clk 0:01:09.2]} 25... Nxg4 {[%clk 0:01:16.7]} 26. Qxg4
{[%clk 0:01:11.1]} 26... a6 {[%clk 0:00:59.3]} 27. dxc5 {[%clk 0:01:06.7]} 27...
Qxc5 {[%clk 0:00:59.2]} 28. Rc2 {[%clk 0:00:50.1]} 28... Qe5 {[%clk 0:00:53.5]}
29. g3 {[%clk 0:00:42.8]} 29... b5 {[%clk 0:00:43.2]} 30. Bf1 {[%clk 0:00:40.7]}
30... Qd5 {[%clk 0:00:41]} 31. b3 {[%clk 0:00:33.8]} 31... Re8 {[%clk 0:00:40]}
32. Re2 {[%clk 0:00:28.8]} 32... Rxe2 {[%clk 0:00:36]} 33. Qxe2 {[%clk
0:00:29.8]} 33... Bc5 {[%clk 0:00:36.9]} 34. Bg2 {[%clk 0:00:29.3]} 34... Qd6
{[%clk 0:00:33.4]} 35. Kh2 {[%clk 0:00:27.1]} 35... h5 {[%clk 0:00:34.5]} 36. h4
{[%clk 0:00:27.2]} 36... Qf6 {[%clk 0:00:35.4]} 37. f4 {[%clk 0:00:27.2]} 37...
Qa1 {[%clk 0:00:32.9]} 38. Qc2 {[%clk 0:00:26.5]} 38... Qg1+ {[%clk 0:00:27.6]}
39. Kh3 {[%clk 0:00:27.6]} 39... Bd4 {[%clk 0:00:22.9]} 40. Qe4 {[%clk 0:00:28]}
40... Qf2 {[%clk 0:00:22.4]} 41. a4 {[%clk 0:00:27.6]} 41... b4 {[%clk
0:00:21.2]} 42. Qf3 {[%clk 0:00:26.2]} 42... Qb2 {[%clk 0:00:21.4]} 43. Qd3
{[%clk 0:00:26.5]} 43... a5 {[%clk 0:00:22.5]} 44. Bd5 {[%clk 0:00:21.5]} 44...
Bg1 {[%clk 0:00:21.7]} 45. Bg2 {[%clk 0:00:22.3]} 45... Bf2 {[%clk 0:00:21.5]}
46. Qf3 {[%clk 0:00:23]} 46... Bd4 {[%clk 0:00:18.7]} 47. Qd5 {[%clk 0:00:23.5]}
47... Bf2 {[%clk 0:00:18.5]} 48. Qf3 {[%clk 0:00:24.4]} 48... Qd2 {[%clk
0:00:19.3]} 49. Qd5 {[%clk 0:00:22.5]} 49... Qe3 {[%clk 0:00:19.2]} 50. Qf3
{[%clk 0:00:23.5]} 50... Qe6+ {[%clk 0:00:20.2]} 51. Kh2 {[%clk 0:00:24.1]}
51... Bb6 {[%clk 0:00:18.4]} 52. Qc6 {[%clk 0:00:23.4]} 52... Qe3 {[%clk
0:00:18.7]} 53. Qf3 {[%clk 0:00:24]} 53... Qg1+ {[%clk 0:00:12.6]} 54. Kh3
{[%clk 0:00:25.3]} 54... Qc1 {[%clk 0:00:11.7]} 55. f5 {[%clk 0:00:24.4]} 55...
Qc8 {[%clk 0:00:11.8]} 56. Kh2 {[%clk 0:00:22.4]} 56... Qc3 {[%clk 0:00:08.3]}
57. fxg6 {[%clk 0:00:22.2]} 57... fxg6 {[%clk 0:00:09.3]} 58. Qb7+ {[%clk
0:00:23.2]} 58... Bc7 {[%clk 0:00:10.2]} 59. Qf3 {[%clk 0:00:24.2]} 59... Qd4
{[%clk 0:00:11.4]} 60. Kh3 {[%clk 0:00:24.6]} 60... Qd7+ {[%clk 0:00:12.5]} 61.
Kh2 {[%clk 0:00:25.3]} 61... Qe7 {[%clk 0:00:13.7]} 62. Qe4 {[%clk 0:00:25.1]}
62... Qf6 {[%clk 0:00:13.7]} 63. Kh3 {[%clk 0:00:22.4]} 63... Qc3 {[%clk
0:00:10.7]} 64. Qf3 {[%clk 0:00:20.1]} 64... Qe5 {[%clk 0:00:11.3]} 65. Kh2
{[%clk 0:00:11.3]} 65... g5 {[%clk 0:00:10.6]} 66. hxg5 {[%clk 0:00:09.8]} 66...
Qxg5 {[%clk 0:00:12.5]} 67. Kh3 {[%clk 0:00:07.3]} 67... Bd6 {[%clk 0:00:12.9]}
68. Qd3 {[%clk 0:00:07]} 68... Qg4+ {[%clk 0:00:12.9]} 69. Kh2 {[%clk
0:00:07.3]} 69... Qh4+ {[%clk 0:00:13.4]} 70. Kg1 {[%clk 0:00:08]} 70... Bc5+
{[%clk 0:00:14.7]} 71. Kf1 {[%clk 0:00:07.9]} 71... Qf6+ {[%clk 0:00:15.7]} 72.
Qf3 {[%clk 0:00:08.7]} 72... Qa1+ {[%clk 0:00:15.6]} 73. Ke2 {[%clk 0:00:10]}
73... Qb2+ {[%clk 0:00:16.3]} 74. Kf1 {[%clk 0:00:11.3]} 74... Qc1+ {[%clk
0:00:16.9]} 75. Ke2 {[%clk 0:00:12.5]} 75... Qc2+ {[%clk 0:00:11.9]} 76. Ke1
{[%clk 0:00:13.7]} 76... Qc1+ {[%clk 0:00:05.5]} 77. Ke2 {[%clk 0:00:15]} 77...
Qb2+ {[%clk 0:00:07]} 78. Ke1 {[%clk 0:00:16.1]} 78... Qe5+ {[%clk 0:00:08.1]}
79. Kf1 {[%clk 0:00:17]} 79... Bd4 {[%clk 0:00:08.9]} 80. Qb7+ {[%clk
0:00:14.7]} 80... Kf8 {[%clk 0:00:08.1]} 81. Qa8+ {[%clk 0:00:14.1]} 81... Ke7
{[%clk 0:00:08.4]} 82. Qb7+ {[%clk 0:00:14.9]} 82... Kf8 {[%clk 0:00:09.5]} 83.
Qa8+ {[%clk 0:00:15.2]} 83... Ke7 {[%clk 0:00:09.6]} 84. Qb7+ {[%clk 0:00:16.4]}
84... Kf6 {[%clk 0:00:11.1]} 85. Qc6+ {[%clk 0:00:15.1]} 85... Kg5 {[%clk
0:00:09]} 86. Qd5 {[%clk 0:00:16]} 86... Kg4 {[%clk 0:00:06.3]} 87. Qf3+ {[%clk
0:00:11.4]} 87... Kg5 {[%clk 0:00:07.3]} 88. Qd5 {[%clk 0:00:13]} 88... Qxd5
{[%clk 0:00:05.7]} 89. Bxd5 {[%clk 0:00:13.6]} 89... Kg4 {[%clk 0:00:05.8]} 90.
Kg2 {[%clk 0:00:14.9]} 90... h4 {[%clk 0:00:03.6]} 91. Bf3+ {[%clk 0:00:16.8]}
91... Kg5 {[%clk 0:00:04.7]} 92. gxh4+ {[%clk 0:00:17.2]} 92... Kxh4 {[%clk
0:00:05.1]} 93. Bd5 {[%clk 0:00:19.1]} 93... Kg5 {[%clk 0:00:04.7]} 1/2-1/2

[Event "*** Titled Tuesday Blitz"]
[Site "Chess.com"]
[Date "2020.01.07"]
[Round "8"]
[White "PNEPaul"]
[Black "HrvojeZagreb"]
[Result "0-1"]
[WhiteElo "1825"]
[BlackElo "2222"]
[TimeControl "180+2"]
[EndTime "14:47:42 PST"]
[Termination "HrvojeZagreb won by resignation"]

1. e4 {[%clk 0:03:01.9]} 1... e6 {[%clk 0:03:00.8]} 2. d4 {[%clk 0:03:01.9]}
2... d5 {[%clk 0:03:02.3]} 3. e5 {[%clk 0:03:02.9]} 3... c5 {[%clk 0:03:03]} 4.
Qg4 {[%clk 0:03:03.3]} 4... Nc6 {[%clk 0:03:04.9]} 5. Nf3 {[%clk 0:03:04.2]}
5... h5 {[%clk 0:03:06.1]} 6. Qg3 {[%clk 0:03:04.5]} 6... Nge7 {[%clk
0:03:07.1]} 7. Bd3 {[%clk 0:03:05.2]} 7... c4 {[%clk 0:03:08.2]} 8. Be2 {[%clk
0:03:05.4]} 8... Nf5 {[%clk 0:03:09.4]} 9. Qf4 {[%clk 0:03:06.5]} 9... g5 {[%clk
0:03:00.6]} 10. Qxg5 {[%clk 0:02:29.9]} 10... Qxg5 {[%clk 0:02:56.4]} 11. Nxg5
{[%clk 0:02:30.5]} 11... Ncxd4 {[%clk 0:02:57.3]} 12. Nc3 {[%clk 0:02:21.1]}
12... Nxc2+ {[%clk 0:02:57.6]} 0-1

[Event "*** Titled Tuesday Blitz"]
[Site "Chess.com"]
[Date "2020.01.07"]
[Round "8"]
[White "vugarrasulov"]
[Black "nurmiTV"]
[Result "1-0"]
[WhiteElo "2831"]
[BlackElo "2542"]
[TimeControl "180+2"]
[EndTime "14:47:54 PST"]
[Termination "vugarrasulov won by resignation"]

1. Nf3 {[%clk 0:03:01.9]} 1... c5 {[%clk 0:01:53.5]} 2. e4 {[%clk 0:03:01.9]}
2... e6 {[%clk 0:01:54.5]} 3. d4 {[%clk 0:03:02.8]} 3... cxd4 {[%clk 0:01:56.4]}
4. Nxd4 {[%clk 0:03:04.7]} 4... a6 {[%clk 0:01:58]} 5. Nc3 {[%clk 0:03:06.1]}
5... Qc7 {[%clk 0:01:59.1]} 6. g3 {[%clk 0:03:07.5]} 6... b5 {[%clk 0:01:59]} 7.
Bg2 {[%clk 0:03:09]} 7... Bb7 {[%clk 0:01:59.5]} 8. O-O {[%clk 0:03:10.5]} 8...
Nf6 {[%clk 0:02:01]} 9. Re1 {[%clk 0:03:11.2]} 9... Be7 {[%clk 0:02:01.4]} 10.
e5 {[%clk 0:03:08.9]} 10... Nd5 {[%clk 0:01:59.6]} 11. Nxd5 {[%clk 0:03:09.5]}
11... Bxd5 {[%clk 0:02:01.2]} 12. Bxd5 {[%clk 0:03:10.2]} 12... exd5 {[%clk
0:02:03.1]} 13. Nf5 {[%clk 0:03:11.9]} 13... Qc6 {[%clk 0:02:01.6]} 14. Nxg7+
{[%clk 0:03:11]} 1-0

[Event "*** Titled Tuesday Blitz"]
[Site "Chess.com"]
[Date "2020.01.07"]
[Round "8"]
[White "2165149677570"]
[Black "FearNoEvil12"]
[Result "1-0"]
[WhiteElo "2294"]
[BlackElo "2051"]
[TimeControl "180+2"]
[EndTime "14:48:56 PST"]
[Termination "2165149677570 won by resignation"]

1. d4 {[%clk 0:03:01.9]} 1... b5 {[%clk 0:03:00.3]} 2. e4 {[%clk 0:02:58.1]}
2... a6 {[%clk 0:03:01.7]} 3. Bd3 {[%clk 0:02:45.6]} 3... Bb7 {[%clk 0:03:03.1]}
4. Nf3 {[%clk 0:02:47.2]} 4... e6 {[%clk 0:03:04.3]} 5. O-O {[%clk 0:02:48.1]}
5... Nf6 {[%clk 0:03:05.8]} 6. Re1 {[%clk 0:02:43.2]} 6... d6 {[%clk 0:03:07.1]}
7. a4 {[%clk 0:02:42.5]} 7... b4 {[%clk 0:03:07.1]} 8. c4 {[%clk 0:02:21]} 8...
bxc3 {[%clk 0:03:06.7]} 9. Nxc3 {[%clk 0:02:22.2]} 9... Nbd7 {[%clk 0:03:06.1]}
10. b4 {[%clk 0:02:14.7]} 10... h6 {[%clk 0:03:06.3]} 11. b5 {[%clk 0:02:15.9]}
11... a5 {[%clk 0:03:04.7]} 12. Ba3 {[%clk 0:02:11.6]} 12... g5 {[%clk
0:03:04.4]} 13. Qb3 {[%clk 0:01:36.9]} 13... g4 {[%clk 0:02:57.9]} 14. Nd2
{[%clk 0:01:36.1]} 14... h5 {[%clk 0:02:58.4]} 15. e5 {[%clk 0:01:37.1]} 15...
Nd5 {[%clk 0:02:57.6]} 16. exd6 {[%clk 0:01:38.4]} 16... Nxc3 {[%clk 0:02:54.2]}
17. Rxe6+ {[%clk 0:01:35.9]} 17... fxe6 {[%clk 0:02:51]} 18. Qxe6+ {[%clk
0:01:37.8]} 18... Be7 {[%clk 0:02:51.6]} 19. Bg6+ {[%clk 0:01:39.1]} 1-0

[Event "*** Titled Tuesday Blitz"]
[Site "Chess.com"]
[Date "2020.01.07"]
[Round "8"]
[White "temus_galaktionov"]
[Black "Keaton87"]
[Result "1-0"]
[WhiteElo "2752"]
[BlackElo "2616"]
[TimeControl "180+2"]
[EndTime "14:48:57 PST"]
[Termination "temus_galaktionov won by resignation"]

1. d4 {[%clk 0:03:01.9]} 1... d5 {[%clk 0:02:28.4]} 2. Nf3 {[%clk 0:03:01.9]}
2... Nf6 {[%clk 0:02:28.9]} 3. c4 {[%clk 0:03:01]} 3... e6 {[%clk 0:02:27.3]} 4.
Nc3 {[%clk 0:03:01]} 4... Be7 {[%clk 0:02:26.8]} 5. Bf4 {[%clk 0:03:00.5]} 5...
O-O {[%clk 0:02:27.5]} 6. e3 {[%clk 0:03:01]} 6... b6 {[%clk 0:02:28.3]} 7. Bd3
{[%clk 0:02:59.7]} 7... dxc4 {[%clk 0:02:28.7]} 8. Bxc4 {[%clk 0:03:00.6]} 8...
Ba6 {[%clk 0:02:29.3]} 9. Bxa6 {[%clk 0:02:59.3]} 9... Nxa6 {[%clk 0:02:31.2]}
10. Qe2 {[%clk 0:02:56.5]} 10... Qc8 {[%clk 0:02:31.3]} 11. O-O {[%clk
0:02:56.3]} 11... c5 {[%clk 0:02:32.2]} 12. Rac1 {[%clk 0:02:56.1]} 12... Qb7
{[%clk 0:02:33.3]} 13. Nb5 {[%clk 0:02:51]} 13... cxd4 {[%clk 0:02:28.3]} 14.
Nfxd4 {[%clk 0:02:49]} 14... Rac8 {[%clk 0:02:29.1]} 15. Bd6 {[%clk 0:02:45.4]}
15... Rxc1 {[%clk 0:02:13.4]} 16. Rxc1 {[%clk 0:02:44.6]} 16... Bxd6 {[%clk
0:02:12]} 17. Nxd6 {[%clk 0:02:44]} 17... Qd5 {[%clk 0:02:12.8]} 18. Nc8 {[%clk
0:02:27.3]} 18... Nc5 {[%clk 0:02:03]} 19. Ne7+ {[%clk 0:02:26.4]} 1-0

[Event "*** Titled Tuesday Blitz"]
[Site "Chess.com"]
[Date "2020.01.07"]
[Round "8"]
[White "letantha"]
[Black "esteban062000"]
[Result "1-0"]
[WhiteElo "1860"]
[BlackElo "2017"]
[TimeControl "180+2"]
[EndTime "14:50:01 PST"]
[Termination "letantha won by resignation"]

1. e4 {[%clk 0:03:01.9]} 1... c5 {[%clk 0:03:00.8]} 2. c3 {[%clk 0:03:02.6]}
2... d5 {[%clk 0:03:00.9]} 3. exd5 {[%clk 0:02:58.5]} 3... Qxd5 {[%clk
0:03:01.8]} 4. d4 {[%clk 0:02:58.7]} 4... Nf6 {[%clk 0:03:02.5]} 5. Nf3 {[%clk
0:02:58.6]} 5... Bg4 {[%clk 0:03:03.5]} 6. Nbd2 {[%clk 0:02:58.1]} 6... cxd4
{[%clk 0:03:03.6]} 7. Bc4 {[%clk 0:02:58.4]} 7... Qd8 {[%clk 0:03:02.3]} 8. Qb3
{[%clk 0:02:58.5]} 8... e6 {[%clk 0:02:58.2]} 9. Qxb7 {[%clk 0:02:57.5]} 9...
Nbd7 {[%clk 0:02:59]} 10. Nxd4 {[%clk 0:02:56.2]} 10... Qc8 {[%clk 0:02:45.1]}
11. Qxc8+ {[%clk 0:02:44.9]} 11... Rxc8 {[%clk 0:02:47]} 12. Ba6 {[%clk
0:02:31.2]} 12... Rc6 {[%clk 0:02:40.9]} 13. Nxc6 {[%clk 0:02:31.4]} 13... Bc5
{[%clk 0:02:40.1]} 14. Nb3 {[%clk 0:02:22.9]} 14... Bb6 {[%clk 0:02:41]} 15. Be3
{[%clk 0:02:23.4]} 15... O-O {[%clk 0:02:40.2]} 16. Bxb6 {[%clk 0:02:23.3]}
16... axb6 {[%clk 0:02:42.1]} 17. f3 {[%clk 0:02:19]} 17... Bf5 {[%clk
0:02:41.7]} 18. Nbd4 {[%clk 0:02:17.6]} 18... Bg6 {[%clk 0:02:41.5]} 19. Ne7+
{[%clk 0:02:18.5]} 19... Kh8 {[%clk 0:02:42]} 20. Nxg6+ {[%clk 0:02:20.4]} 20...
hxg6 {[%clk 0:02:43.8]} 21. Kf2 {[%clk 0:02:15.8]} 21... Nc5 {[%clk 0:02:44.7]}
22. Bb5 {[%clk 0:02:15.9]} 22... e5 {[%clk 0:02:44.4]} 23. Nb3 {[%clk
0:02:16.2]} 23... Ne6 {[%clk 0:02:42.9]} 24. Rhd1 {[%clk 0:02:12.5]} 24... e4
{[%clk 0:02:42.9]} 25. Nd4 {[%clk 0:02:09.8]} 25... Nc5 {[%clk 0:02:41.7]} 26.
b4 {[%clk 0:02:10.3]} 26... Nb7 {[%clk 0:02:39.5]} 27. Bc6 {[%clk 0:02:05]}
27... Nd6 {[%clk 0:02:37.5]} 28. a4 {[%clk 0:02:00.7]} 28... exf3 {[%clk
0:02:35.5]} 29. gxf3 {[%clk 0:02:01.3]} 29... Rc8 {[%clk 0:02:34.7]} 30. a5
{[%clk 0:02:00.6]} 30... bxa5 {[%clk 0:02:34.4]} 31. bxa5 {[%clk 0:02:02.5]}
31... Nc4 {[%clk 0:02:29.4]} 32. a6 {[%clk 0:02:02.1]} 32... Ne5 {[%clk
0:02:30.6]} 33. a7 {[%clk 0:02:01.5]} 33... Nxc6 {[%clk 0:02:29.1]} 34. Nxc6
{[%clk 0:02:02.1]} 34... Ra8 {[%clk 0:02:29.7]} 35. Rd8+ {[%clk 0:02:02.4]} 1-0

[Event "*** Titled Tuesday Blitz"]
[Site "Chess.com"]
[Date "2020.01.07"]
[Round "8"]
[White "albano87"]
[Black "NTBT_DHS"]
[Result "0-1"]
[WhiteElo "2118"]
[BlackElo "2630"]
[TimeControl "180+2"]
[EndTime "14:50:04 PST"]
[Termination "NTBT_DHS won on time"]

1. d4 {[%clk 0:03:01.6]} 1... Nf6 {[%clk 0:03:00.5]} 2. Nf3 {[%clk 0:03:02.7]}
2... g6 {[%clk 0:03:01.8]} 3. g3 {[%clk 0:03:04.1]} 3... Bg7 {[%clk 0:03:03.3]}
4. Bg2 {[%clk 0:03:05.5]} 4... O-O {[%clk 0:03:05.2]} 5. O-O {[%clk 0:03:06.9]}
5... d6 {[%clk 0:03:07.1]} 6. a4 {[%clk 0:03:07.4]} 6... Na6 {[%clk 0:03:07.6]}
7. Re1 {[%clk 0:02:58.7]} 7... c5 {[%clk 0:03:08.3]} 8. d5 {[%clk 0:02:56.8]}
8... e6 {[%clk 0:03:01.1]} 9. Nc3 {[%clk 0:02:45]} 9... exd5 {[%clk 0:02:59.4]}
10. Nxd5 {[%clk 0:02:45.5]} 10... Nxd5 {[%clk 0:03:01.1]} 11. Qxd5 {[%clk
0:02:46.2]} 11... Nb4 {[%clk 0:03:03]} 12. Qd1 {[%clk 0:02:43.3]} 12... Bf5
{[%clk 0:03:03.9]} 13. e4 {[%clk 0:02:42.5]} 13... Bg4 {[%clk 0:03:05]} 0-1

[Event "*** Titled Tuesday Blitz"]
[Site "Chess.com"]
[Date "2020.01.07"]
[Round "8"]
[White "ehrenfeld"]
[Black "JonahWillow"]
[Result "1-0"]
[WhiteElo "2553"]
[BlackElo "2761"]
[TimeControl "180+2"]
[EndTime "14:50:14 PST"]
[Termination "ehrenfeld won by resignation"]

1. e4 {[%clk 0:03:01.9]} 1... c5 {[%clk 0:03:01.3]} 2. d3 {[%clk 0:03:01.3]}
2... Nc6 {[%clk 0:03:01.7]} 3. f4 {[%clk 0:03:02.4]} 3... g6 {[%clk 0:03:02.7]}
4. Nf3 {[%clk 0:03:03.5]} 4... Bg7 {[%clk 0:03:04.6]} 5. Be2 {[%clk 0:03:04.8]}
5... e6 {[%clk 0:03:03.8]} 6. O-O {[%clk 0:03:06.2]} 6... Nge7 {[%clk
0:03:05.7]} 7. c3 {[%clk 0:03:06.9]} 7... O-O {[%clk 0:03:06.7]} 8. Be3 {[%clk
0:03:07.8]} 8... b6 {[%clk 0:03:07.4]} 9. d4 {[%clk 0:03:06.1]} 9... d6 {[%clk
0:03:08.2]} 10. Na3 {[%clk 0:02:54.2]} 10... Bb7 {[%clk 0:03:08.4]} 11. dxc5
{[%clk 0:02:53.5]} 11... dxc5 {[%clk 0:03:03.8]} 12. Qe1 {[%clk 0:02:52.2]}
12... Na5 {[%clk 0:03:01.1]} 13. Rd1 {[%clk 0:02:52.4]} 13... Qc8 {[%clk
0:03:02.2]} 14. Qh4 {[%clk 0:02:51]} 14... Re8 {[%clk 0:02:34]} 15. Nb5 {[%clk
0:02:48.8]} 15... Bxe4 {[%clk 0:02:23]} 16. Nd6 {[%clk 0:02:47.5]} 16... Qc6
{[%clk 0:02:24]} 17. Bb5 {[%clk 0:02:32.1]} 17... Nf5 {[%clk 0:01:15.1]} 18.
Bxc6 {[%clk 0:02:21.7]} 18... Nxh4 {[%clk 0:01:11.1]} 19. Bxe4 {[%clk
0:02:10.6]} 19... Nxf3+ {[%clk 0:01:10.2]} 20. Bxf3 {[%clk 0:02:09.8]} 1-0

[Event "*** Titled Tuesday Blitz"]
[Site "Chess.com"]
[Date "2020.01.07"]
[Round "8"]
[White "BjarkeSahl"]
[Black "W_Amadeus"]
[Result "0-1"]
[WhiteElo "2237"]
[BlackElo "2660"]
[TimeControl "180+2"]
[EndTime "14:51:32 PST"]
[Termination "W_Amadeus won by checkmate"]

1. e4 {[%clk 0:02:59.5]} 1... e5 {[%clk 0:03:00.9]} 2. Nf3 {[%clk 0:03:00.2]}
2... Nc6 {[%clk 0:03:02.3]} 3. d4 {[%clk 0:03:00.7]} 3... exd4 {[%clk
0:03:02.7]} 4. Bc4 {[%clk 0:02:59.8]} 4... Nf6 {[%clk 0:03:03.4]} 5. e5 {[%clk
0:03:00.3]} 5... d5 {[%clk 0:03:03.3]} 6. Bb5 {[%clk 0:03:01.3]} 6... Ne4 {[%clk
0:03:04.6]} 7. Nxd4 {[%clk 0:03:02.8]} 7... Bc5 {[%clk 0:03:06]} 8. Be3 {[%clk
0:03:03.1]} 8... O-O {[%clk 0:03:05.6]} 9. Bxc6 {[%clk 0:03:02.1]} 9... bxc6
{[%clk 0:03:05.5]} 10. O-O {[%clk 0:03:01.6]} 10... Qe8 {[%clk 0:02:58.7]} 11.
f3 {[%clk 0:02:45.3]} 11... Nd6 {[%clk 0:02:57.9]} 12. f4 {[%clk 0:02:42.7]}
12... f6 {[%clk 0:02:42.1]} 13. Re1 {[%clk 0:00:43.4]} 13... fxe5 {[%clk
0:02:34.7]} 14. fxe5 {[%clk 0:00:43.9]} 14... Qxe5 {[%clk 0:02:25.6]} 15. Nc3
{[%clk 0:00:38.5]} 15... Nc4 {[%clk 0:02:19.4]} 16. Bf2 {[%clk 0:00:39.4]} 16...
Qf6 {[%clk 0:02:18.2]} 17. Rf1 {[%clk 0:00:21.5]} 17... Nxb2 {[%clk 0:02:15.7]}
18. Qd2 {[%clk 0:00:21.4]} 18... Ba6 {[%clk 0:02:14.6]} 19. Nb3 {[%clk
0:00:06.1]} 19... Bb4 {[%clk 0:02:02.3]} 20. Bd4 {[%clk 0:00:02.4]} 20... Qxf1+
{[%clk 0:02:02.8]} 21. Rxf1 {[%clk 0:00:02.2]} 21... Rxf1# {[%clk 0:02:04.7]}
0-1

[Event "*** Titled Tuesday Blitz"]
[Site "Chess.com"]
[Date "2020.01.07"]
[Round "8"]
[White "kkpanu9"]
[Black "Roenko_Artur"]
[Result "0-1"]
[WhiteElo "2089"]
[BlackElo "2245"]
[TimeControl "180+2"]
[EndTime "14:52:13 PST"]
[Termination "Roenko_Artur won by resignation"]

1. e4 {[%clk 0:03:01.9]} 1... e6 {[%clk 0:02:59.5]} 2. d3 {[%clk 0:03:02.8]}
2... d5 {[%clk 0:03:00.7]} 3. Nd2 {[%clk 0:03:04.7]} 3... g6 {[%clk 0:03:00.1]}
4. g3 {[%clk 0:03:04.8]} 4... Bg7 {[%clk 0:03:01.7]} 5. Bg2 {[%clk 0:03:06.7]}
5... c5 {[%clk 0:03:02.3]} 6. Ngf3 {[%clk 0:03:05.7]} 6... Ne7 {[%clk
0:03:01.7]} 7. O-O {[%clk 0:03:06.7]} 7... O-O {[%clk 0:03:02.4]} 8. Re1 {[%clk
0:03:03.1]} 8... Nbc6 {[%clk 0:03:03.2]} 9. e5 {[%clk 0:02:53.5]} 9... b5 {[%clk
0:03:02.2]} 10. h4 {[%clk 0:02:53.6]} 10... h5 {[%clk 0:03:00.3]} 11. Nf1 {[%clk
0:02:46.1]} 11... Nf5 {[%clk 0:03:00.9]} 12. Bg5 {[%clk 0:02:43.5]} 12... Qc7
{[%clk 0:02:57.4]} 13. Ne3 {[%clk 0:02:38.1]} 13... Nxe3 {[%clk 0:02:50.9]} 14.
Rxe3 {[%clk 0:02:38]} 14... Nxe5 {[%clk 0:02:51.8]} 15. Bf4 {[%clk 0:02:35.6]}
15... Nxf3+ {[%clk 0:02:49.5]} 16. Bxf3 {[%clk 0:02:34.6]} 16... e5 {[%clk
0:02:47.5]} 17. Bg5 {[%clk 0:02:17.8]} 17... Bb7 {[%clk 0:02:47.1]} 18. Re1
{[%clk 0:02:11.6]} 18... b4 {[%clk 0:02:35]} 19. a3 {[%clk 0:01:53.9]} 19... a5
{[%clk 0:02:32]} 20. Qd2 {[%clk 0:01:51.2]} 20... Kh7 {[%clk 0:02:30.4]} 21. c3
{[%clk 0:01:47.6]} 21... f6 {[%clk 0:02:27.8]} 22. Be3 {[%clk 0:01:29.3]} 22...
d4 {[%clk 0:02:03.9]} 23. cxd4 {[%clk 0:01:29.5]} 23... cxd4 {[%clk 0:02:04.7]}
24. Rac1 {[%clk 0:01:25.3]} 24... Qb6 {[%clk 0:02:04]} 25. Bxd4 {[%clk
0:01:21.7]} 25... exd4 {[%clk 0:02:02.9]} 26. Bxb7 {[%clk 0:01:17.7]} 26... Qxb7
{[%clk 0:02:00.1]} 27. Re6 {[%clk 0:01:16.2]} 27... Bh6 {[%clk 0:01:59.6]} 28.
Qe1 {[%clk 0:01:09.3]} 28... Rf7 {[%clk 0:01:54.3]} 29. Rcc6 {[%clk 0:01:05.1]}
29... Kg7 {[%clk 0:01:38.9]} 30. Qc1 {[%clk 0:00:34.1]} 30... Bxc1 {[%clk
0:01:33.8]} 0-1

[Event "*** Titled Tuesday Blitz"]
[Site "Chess.com"]
[Date "2020.01.07"]
[Round "8"]
[White "karwowskikacper"]
[Black "yy2324"]
[Result "0-1"]
[WhiteElo "2435"]
[BlackElo "2594"]
[TimeControl "180+2"]
[EndTime "14:52:37 PST"]
[Termination "yy2324 won by resignation"]

1. e4 {[%clk 0:03:01.9]} 1... c5 {[%clk 0:03:00.6]} 2. Nf3 {[%clk 0:03:02]} 2...
e6 {[%clk 0:03:02.1]} 3. d4 {[%clk 0:03:02.3]} 3... cxd4 {[%clk 0:03:03.5]} 4.
Nxd4 {[%clk 0:03:04.2]} 4... Nc6 {[%clk 0:03:04.3]} 5. Nc3 {[%clk 0:03:04.7]}
5... Qc7 {[%clk 0:03:05.7]} 6. Be2 {[%clk 0:03:03.1]} 6... a6 {[%clk 0:03:05.8]}
7. O-O {[%clk 0:03:03.7]} 7... Nf6 {[%clk 0:03:07.1]} 8. Be3 {[%clk 0:03:03.7]}
8... Bb4 {[%clk 0:03:07.4]} 9. Na4 {[%clk 0:03:04.3]} 9... Be7 {[%clk
0:03:08.1]} 10. Nxc6 {[%clk 0:03:05]} 10... bxc6 {[%clk 0:03:09.3]} 11. Nb6
{[%clk 0:03:06.6]} 11... Rb8 {[%clk 0:03:10.5]} 12. Nxc8 {[%clk 0:03:08.2]}
12... Qxc8 {[%clk 0:03:12.4]} 13. Bd4 {[%clk 0:02:42.5]} 13... c5 {[%clk
0:03:12]} 14. Be5 {[%clk 0:02:38.6]} 14... Rb6 {[%clk 0:03:12.8]} 15. b3 {[%clk
0:02:25]} 15... Nxe4 {[%clk 0:03:08]} 16. Bxg7 {[%clk 0:02:22.9]} 16... Rg8
{[%clk 0:03:09.7]} 17. Be5 {[%clk 0:02:18.2]} 17... Bd6 {[%clk 0:03:08.8]} 18.
Bg3 {[%clk 0:02:06.3]} 18... Nxg3 {[%clk 0:03:08.1]} 19. hxg3 {[%clk 0:02:08.2]}
19... Be5 {[%clk 0:02:55.7]} 20. Rb1 {[%clk 0:02:06.4]} 20... Bd4 {[%clk
0:02:53.6]} 21. Qd3 {[%clk 0:02:02.9]} 21... Rd6 {[%clk 0:02:53]} 22. Qxh7
{[%clk 0:02:01.7]} 22... Rh8 {[%clk 0:01:51.4]} 23. Qe4 {[%clk 0:01:59.1]} 23...
f5 {[%clk 0:01:52.2]} 24. Qf4 {[%clk 0:01:50.2]} 24... e5 {[%clk 0:01:25.6]} 25.
Bxa6 {[%clk 0:01:04.2]} 25... Qxa6 {[%clk 0:01:21.2]} 26. Rfe1 {[%clk
0:01:04.1]} 26... Rdh6 {[%clk 0:01:17.6]} 27. Rxe5+ {[%clk 0:01:00.2]} 27...
Bxe5 {[%clk 0:00:59.3]} 28. Qxe5+ {[%clk 0:01:00.8]} 28... Qe6 {[%clk
0:01:00.9]} 29. f4 {[%clk 0:00:46]} 29... Qxe5 {[%clk 0:01:01.2]} 30. fxe5
{[%clk 0:00:47.9]} 30... Rh1+ {[%clk 0:01:02.2]} 31. Kf2 {[%clk 0:00:47.7]}
31... Rxb1 {[%clk 0:01:04.1]} 0-1